Cogmind - Beta 17.1 @@@ ROGUE MODE // 2026.09.15 @ 14:37:03 Player: eph7ra Result: Destroyed by Cetus Guard with Advanced Variable Charge Gun Performance ------------- Evolutions (4) 2000 Regions Visited (9) 1800 Robots Destroyed (46) 230 Value Destroyed (1093) 1093 Prototype IDs (3) 60 Alien Tech Used (0) 0 Bonus (193) 193 TOTAL SCORE: 5376 Bonus ------- High Alert Combat Kills 16 Follower Combat Kills 177 Cogmind --------- Core Integrity 0/850 Matter 245/300 Energy 100/100 System Corruption 0% Temperature Cool (9) Movement Flying (40) Location -6/Cetus Parts ------- > --- POWER (2) -------- (None) > --- PROPULSION (4) --- Biomechanical Wings > --- UTILITY (7) ------ Advanced Signal Interpreter Hacking Suite > --- WEAPON (2) ------- (None) > --- INVENTORY (5) ---- Improved Terrain Scan Processor Peak State ------------ > --- POWER ------------ Light Deuterium Engine Micro Nuclear Core > --- PROPULSION ------- Cesium-ion Thruster Cesium-ion Thruster Improved VTOL Module Xenon Bombardment Thruster > --- UTILITY ---------- Small Storage Unit Advanced Weight Redist. System Improved Sensor Array Improved Signal Interpreter Improved Propulsion Shielding EM Shield Hacking Suite > --- WEAPON ----------- Remote Datajack Powered Hammer > --- INVENTORY -------- Compact Wheel VTOL Module Cesium-ion Thruster Cesium-ion Thruster Biomechanical Wings Improved Terrain Scan Processor Transmission Jammer Mini Grenade Launcher [Rating: 52] Favorites ----------- Power Light Ion Engine Engine Light Ion Engine Power Core Light Nuclear Core Propulsion Flight Unit Treads Light Treads Leg Aluminum Leg Wheel Compact Wheel Flight Unit Flight Unit Utility Small Storage Unit Device Improved Sensor Array Storage Small Storage Unit Processor Improved Signal Interpreter Hackware Hacking Suite Protection Improved Propulsion Shielding Weapon Light Assault Rifle Energy Gun EM Pulse Gun Ballistic Gun Light Assault Rifle Ballistic Cannon Light Cannon Launcher Mini Grenade Launcher Special Weapon Remote Datajack Impact Weapon Powered Hammer Slashing Weapon Greatsword Build | -11 -10 -9 -8 -7 -6 -6 -6 -6 -6 ------- Run | Yrd Mat Mat Mat Fac Fac Was Fac Ext Cet Slots Evolved 8 | . . 2 2 2 2 . . . . Power 1 | . . . . . 1 . . . . Propulsion 2 | . . 1 1 . . . . . . Utility 5 | . . 1 1 2 1 . . . . Weapon . | . . . . . . . . . . Parts Attached 71 | 6 3 16 14 12 3 1 5 11 . Power 13 | 1 1 4 2 . . . 1 4 . Engine 7 | 1 1 4 1 . . . . . . Core 6 | . . . 1 . . . 1 4 . Reactor . | . . . . . . . . . . Propulsion 29 | 2 . 6 7 7 1 . . 6 . Treads 2 | . . 2 . . . . . . . Leg 4 | 2 . 2 . . . . . . . Wheel 3 | . . 2 . . . . . 1 . Hover . | . . . . . . . . . . Flight 20 | . . . 7 7 1 . . 5 . Utility 15 | 1 1 2 4 2 2 . 2 1 . Device 5 | . . . 1 1 1 . 1 1 . Storage 3 | 1 1 . 1 . . . . . . Processor 3 | . . 1 1 . . . 1 . . Hackware 2 | . . . 1 . 1 . . . . Protection 2 | . . 1 . 1 . . . . . Artifact . | . . . . . . . . . . Weapon 14 | 2 1 4 1 3 . 1 2 . . Energy Gun 2 | 1 . 1 . . . . . . . Energy Cannon . | . . . . . . . . . . Ballistic Gun 5 | 1 1 2 1 . . . . . . Ballistic Cannon 1 | . . 1 . . . . . . . Launcher 1 | . . . . . . . 1 . . Special Weapon 1 | . . . . . . . 1 . . Impact Weapon 2 | . . . . 2 . . . . . Slashing Weapon 2 | . . . . 1 . 1 . . . Piercing Weapon . | . . . . . . . . . . Special Melee Weapon . | . . . . . . . . . . Unidentified Prototypes 3 | . . . . 1 . 1 . 1 . Parts Lost 38 | . 2 6 5 . . . 1 20 4 Power 7 | . . 1 . . . . 1 4 1 Propulsion 15 | . 1 2 2 . . . . 9 1 Utility 9 | . . 1 2 . . . . 5 1 Weapon 7 | . 1 2 1 . . . . 2 1 Highest Loss Streak 20 | . 1 3 3 . . . 1 20 3 To Critical Strikes 1 | . . . . . . . . . 1 Average Backups 7 | 3 7 9 8 7 8 8 7 5 1 Power 1 | . 1 1 . 1 1 1 . . . Propulsion 3 | 1 4 4 3 4 4 4 4 2 . Utility 1 | . . 2 1 1 2 2 2 1 1 Weapon 1 | . 1 1 1 1 1 1 . 1 . Tool/Special . | . . . . . . . . . . Unused Backups 8 | . . 2 2 3 . . . . 1 Power 2 | . . 1 . 1 . . . . . Propulsion 3 | . . 1 1 1 . . . . . Utility 3 | . . . 1 1 . . . . 1 Weapon . | . . . . . . . . . . Tool/Special . | . . . . . . . . . . Average Slot Usage (%) 78 | . 83 83 78 73 77 80 89 65 34 Engine 7 | . 14 10 4 7 6 6 4 . . Core 1 | . . . 4 . . . 3 6 2 Treads 4 | . . 15 . . . . . . . Leg 4 | . 23 3 3 . . . . . . Wheel 3 | . . 10 1 . . . . . . Flight 14 | . . . 25 30 26 26 26 19 12 Device 5 | . . . 5 7 12 13 17 11 5 Storage 9 | . 17 12 9 7 6 6 6 3 . Processor 6 | . . 7 8 7 6 6 6 6 6 Hackware 2 | . . . 2 . 4 6 6 6 6 Protection 3 | . . 5 . 3 6 6 6 2 . Energy Gun 1 | . 13 . . . . . . . . Ballistic Gun 8 | . 14 13 13 3 . . . . . Ballistic Cannon 1 | . . 5 . . . . . . . Impact Weapon 1 | . . . . 2 6 6 6 3 . Peak Build Rating 52 | 6 7 18 21 35 41 50 52 51 23 Average Rating 20 | 5 6 10 16 25 38 41 46 35 20 On Entrance 23 | . 6 6 18 17 32 41 41 51 23 Avg Prop Armor Cover (%) 13 | . . 14 14 . . . . 5 . Naked Turns . | . . . . . . . . . . Heaviest Build 26 | 12 21 25 25 18 17 17 26 21 6 Greatest Support 40 | 20 20 40 16 20 22 22 31 31 10 Greatest Overweight (x) 2 | 2 2 2 2 . . . . 1 . Average Overweight (x) . | . . . . . . . . . . Largest Inventory Capacity 10 | 8 10 10 10 8 8 8 8 8 5 Average Capacity 8 | 7 8 10 8 8 8 8 8 6 5 Most Carried 10 | 6 9 10 10 8 8 8 8 8 2 Average Carried 7 | 3 7 9 8 7 7 8 7 5 1 Final Capacity 10 | 8 10 10 8 8 8 8 8 5 5 Final Carried 9 | 6 9 9 8 8 8 8 8 2 1 Class Distribution -------------------- 54% | Mutant 42% | Sprinter Dominant Class ---------------- Mutant | -10/Materials Mutant | -9/Materials Sprinter | -8/Materials Sprinter | -7/Factory Sprinter | -6/Factory Sprinter | -6/Waste Sprinter | -6/Factory Sprinter | -6/Extension Mutant | -6/Cetus Resources | -11 -10 -9 -8 -7 -6 -6 -6 -6 -6 ----------- Run | Yrd Mat Mat Mat Fac Fac Was Fac Ext Cet Matter Collected 1353 | 224 134 517 159 110 64 . . 145 . Remotely . | . . . . . . . . . . Salvage Created 1240 | . 346 727 77 . 25 . 24 . 41 Parts 88 | . 22 47 8 . 6 . 2 . 3 Haulers Intercepted . | . . . . . . . . . . Recyclers Shooed 1 | . . 1 . . . . . . . Parts Field Recycled . | . . . . . . . . . . Retrieved Matter . | . . . . . . . . . . Parts Self-Destructed . | . . . . . . . . . . Prevented . | . . . . . . . . . . Parts Restored . | . . . . . . . . . . Kills | -11 -10 -9 -8 -7 -6 -6 -6 -6 -6 ------- Run | Yrd Mat Mat Mat Fac Fac Was Fac Ext Cet Combat Hostiles Destroyed 37 | . 6 23 4 . . . 3 . 1 Guns 23 | . 5 14 4 . . . . . . Cannons 9 | . . 9 . . . . . . . AOE 5 | . 1 . . . . . 3 . 1 Classes Destroyed 10 | . 5 3 . . 1 . . . 1 Worker 1 | . 1 . . . . . . . . Builder 2 | . . 1 1 . . . . . . Recycler 1 | . 1 . . . . . . . . Operator 1 | . . . . . 1 . . . . Watcher 4 | . 3 1 . . . . . . . Swarmer 18 | . 3 8 4 . . . 3 . . Grunt 13 | . 3 10 . . . . . . . Brawler 1 | . . 1 . . . . . . . Sentry 4 | . . 4 . . . . . . . Hunter 1 | . . . . . . . . . 1 Best Kill Streak 4 | . 3 4 4 . 1 . 3 . 1 Combat Bots Only 4 | . 3 4 4 . . . 3 . 1 Max Kills in Single Turn 2 | . 1 2 1 . 1 . 1 . 1 Gunslinging . | . . . . . . . . . . Exploded 1 | . 1 . . . . . 1 . 1 Melee . | . . . . . . . . . . Uniques/NPCs Destroyed . | . . . . . . . . . . Combat | -11 -10 -9 -8 -7 -6 -6 -6 -6 -6 -------- Run | Yrd Mat Mat Mat Fac Fac Was Fac Ext Cet Hostile Shots Fired 548 | . 44 158 42 6 7 2 22 221 46 Missed 227 | . 13 56 17 4 3 2 9 98 25 Hits 321 | . 31 102 25 2 4 . 13 123 21 Projectile 321 | . 31 102 25 2 4 . 13 123 21 Critical Strikes 7 | . 2 2 1 . . . . 1 1 Damage Taken 4093 | . 361 1104 443 36 80 . 212 1397 460 Core 1350 | . 94 292 91 . 59 . 51 417 346 Absorbed by Shields 99 | . . . . . . . . 99 . Redirected to Shielding 111 | . . . . . 13 . 35 63 . Core Remaining (%) 74 | 100 62 27 83 100 . . . . . Volleys Fired 141 | . 26 96 6 . . . 7 . 6 Largest 2 | . 2 2 2 . . . 1 . 1 Hottest 60 | . 60 60 46 . . . 30 . 30 Shots Fired 242 | . 52 165 12 . . . 7 . 6 Gun 184 | . 52 120 12 . . . . . . Cannon 45 | . . 45 . . . . . . . Launcher 12 | . . . . . . . 6 . 6 Special 1 | . . . . . . . 1 . . Kinetic 197 | . 26 159 12 . . . . . . Thermal 6 | . . 6 . . . . . . . Explosive 12 | . . . . . . . 6 . 6 Electromagnetic 26 | . 26 . . . . . . . . Robot Hit Streak 12 | . 12 12 7 . . . 9 . . Robot Miss Streak 4 | . 4 4 1 . . . . . . Penetration Max . | . . . . . . . . . . Secondary Targets 2 | . 1 1 . . . . . . . Max Gunslinging Chain 1 | . 1 1 . . . . . . . Shots Hit Robots 154 | . 27 115 8 . 1 . 2 1 . Core Hits 74 | . 16 38 5 . 1 . 5 . 9 Critical Kills . | . . . . . . . . . . Critical Parts Destroyed 1 | . 1 . . . . . . . . Critical Strikes 3 | . 2 1 . . . . . . . Destroy 1 | . 1 . . . . . . . . Blast 1 | . . 1 . . . . . . . Corrupt 1 | . 1 . . . . . . . . Melee Attacks 4 | . . . . . 1 . . 3 . Impact 4 | . . . . . 1 . . 3 . Slashing . | . . . . . . . . . . Piercing . | . . . . . . . . . . Sneak Attacks 1 | . . . . . 1 . . . . Combat Hostiles . | . . . . . . . . . . Follow-up Attacks . | . . . . . . . . . . Damage Inflicted 2555 | 2 436 1415 128 . 127 . 257 33 157 Guns 1306 | . 378 803 125 . . . . . . Cannons 612 | . . 612 . . . . . . . Explosions 460 | . 46 . . . . . 257 . 157 Melee 153 | . . . . . 127 . . 26 . Ramming 24 | 2 12 . 3 . . . . 7 . Kinetic 1653 | . 168 1360 125 . . . . . . Thermal 101 | . 46 55 . . . . . . . Explosive 414 | . . . . . . . 257 . 157 Electromagnetic 210 | . 210 . . . . . . . . Impact 153 | . . . . . 127 . . 26 . Slashing . | . . . . . . . . . . Piercing . | . . . . . . . . . . Highest Corruption 4 | . . . . 4 . . . . . Average Corruption 3 | . . . . 3 . . . . . Corruption Purged . | . . . . . . . . . . Corruption Blocked . | . . . . . . . . . . Effects 6 | . . . . 6 . . . . . Message Errors 1 | . . . . 1 . . . . . Matter Fused 3 | . . . . 3 . . . . . Heat Flow Errors 1 | . . . . 1 . . . . . Energy Discharges 1 | . . . . 1 . . . . . Overload Shots . | . . . . . . . . . . Overflow Damage 49 | . . . . . . . 48 1 . Projectiles . | . . . . . . . . . . Explosions 48 | . . . . . . . 48 . . Melee 1 | . . . . . . . . 1 . Knockbacks 5 | . . 5 . . . . . . . Impact . | . . . . . . . . . . Kinetic 5 | . . 5 . . . . . . . Secondary . | . . . . . . . . . . Self-Inflicted Damage 16 | . . . 1 . . . 13 2 . Shots 1 | . . . . . . . 1 . . Rammed 7 | . . . 1 . . . . 6 . Targets Rammed 9 | 1 1 . 1 . . . . 6 . Kicked 2 | 1 1 . . . . . . . . Crushed . | . . . . . . . . . . Highest Temperature 94 | . 36 43 19 94 11 . 3 3 . Average Temperature 15 | . 20 12 8 54 6 . 3 2 . Received Heat Transfer 893 | . 114 357 99 9 39 . 18 203 54 Siege Activations . | . . . . . . . . . . Martial Activations . | . . . . . . . . . . Shielding Activations . | . . . . . . . . . . Robots Disrupted . | . . . . . . . . . . Combat Hostiles . | . . . . . . . . . . Robots Corrupted . | . . . . . . . . . . Combat Hostiles . | . . . . . . . . . . Parts Fried . | . . . . . . . . . . Impact Corruptions 1 | . . . . . . . . 1 . Robots Melted . | . . . . . . . . . . Combat Hostiles . | . . . . . . . . . . Parts Melted 1 | . . 1 . . . . . . . Heat Transferred 175 | . 50 125 . . . . . . . Parts Sabotaged . | . . . . . . . . . . Parts Stolen . | . . . . . . . . . . Parts Stripped . | . . . . . . . . . . Power Chain Reactions 1 | . 1 . . . . . . . . Alert | -11 -10 -9 -8 -7 -6 -6 -6 -6 -6 ------- Run | Yrd Mat Mat Mat Fac Fac Was Fac Ext Cet Maximum Alert Level 2 | . . 2 1 . . . . . . Low Security (%) 88 | 100 100 73 73 100 100 100 100 100 100 Level 1 10 | . . 24 26 . . . . . . Level 2 . | . . 2 . . . . . . . Level 3 . | . . . . . . . . . . Level 4 . | . . . . . . . . . . Level 5 . | . . . . . . . . . . High Security . | . . . . . . . . . . Max Security . | . . . . . . . . . . Peak Influence 408 | . 77 408 244 25 51 12 138 180 72 Initial 169 | . . 7 169 25 . 12 . 52 51 Average 70 | . 26 118 136 2 13 3 55 90 41 Influence Increases 2056 | . 208 761 176 23 137 . 200 480 71 Destroy 0b10 Robot/C 880 | . 120 460 80 . . . 60 140 20 Destroy 0b10 Robot/NC 50 | . 25 10 5 . 5 . . 5 . Destroy Leader 200 | . 36 112 10 . . . . 32 10 Allied During Kill 19 | . . . . . . . . 19 . Successful Hack 204 | . 5 28 6 23 42 . 33 44 23 Disable Machine 30 | . . . . . . . . 15 15 Destroy Structure 28 | . 7 1 . . . . 17 . 3 Partial Spotted 30 | . . . . . 15 . 15 . . Lose Combat Pursuer 615 | . 15 150 75 . 75 . 75 225 . Influence Decreases 2014 | . 190 377 521 80 102 35 92 496 121 Entered New Map 396 | . . 11 233 32 . 23 . 56 41 Time Decay 1136 | . 170 306 238 48 102 10 82 140 40 Lost Part 380 | . 20 60 50 . . . 10 200 40 Lost Ally 102 | . . . . . . 2 . 100 . Squads Dispatched 21 | . 1 4 6 2 2 . 1 3 2 Investigation 9 | . . 1 1 1 1 . 1 2 2 Extermination 1 | . . . . 1 . . . . . Reinforcement 8 | . 1 3 2 . 1 . . 1 . Assault . | . . . . . . . . . . Garrison 3 | . . . 3 . . . . . . Intercept . | . . . . . . . . . . Searches Triggered . | . . . . . . . . . . Construction Impeded 1 | . . . 1 . . . . . . Haulers Reinforced . | . . . . . . . . . . Active Scanning Responses . | . . . . . . . . . . Cargo Convoy Interrupts . | . . . . . . . . . . Stealth | -11 -10 -9 -8 -7 -6 -6 -6 -6 -6 --------- Run | Yrd Mat Mat Mat Fac Fac Was Fac Ext Cet Distress Signals 11 | . 2 3 1 . . . . 4 1 Communications Jammed 4 | . . . . . . . . . 4 Distress Signals 4 | . . . . . . . . . 4 Times Spotted 140 | . 17 39 17 5 8 6 9 31 8 Peak Tracking Total 14 | . 5 7 6 2 3 6 4 14 7 Tactical Retreats 24 | . 1 6 5 . 3 . 2 7 . Traps | -11 -10 -9 -8 -7 -6 -6 -6 -6 -6 ------- Run | Yrd Mat Mat Mat Fac Fac Was Fac Ext Cet Traps Triggered 12 | . 1 . . 2 1 . . 8 . Indirectly . | . . . . . . . . . . Trap Hack Attempts . | . . . . . . . . . . Triggered . | . . . . . . . . . . Disarmed . | . . . . . . . . . . Reprogrammed . | . . . . . . . . . . Reused . | . . . . . . . . . . Traps Extracted . | . . . . . . . . . . Installed . | . . . . . . . . . . Triggered . | . . . . . . . . . . Machines | -11 -10 -9 -8 -7 -6 -6 -6 -6 -6 ---------- Run | Yrd Mat Mat Mat Fac Fac Was Fac Ext Cet Machines Disabled 2 | . . . . . . . . 1 1 Max in Single Turn 1 | . . . . . . . . . 1 Garrison Access 1 | . . . . 1 . . . . . Machines Repaired . | . . . . . . . . . . Machines Dismantled . | . . . . . . . . . . Machines Sabotaged . | . . . . . . . . . . Overloaded Fab Kills . | . . . . . . . . . . Hacking | -11 -10 -9 -8 -7 -6 -6 -6 -6 -6 --------- Run | Yrd Mat Mat Mat Fac Fac Was Fac Ext Cet Machines Accessed 36 | . 1 4 7 3 6 . 5 7 3 Terminals 30 | . 1 3 7 2 4 . 3 7 3 Fabricators 2 | . . . . . 1 . 1 . . Repair Stations . | . . . . . . . . . . Recycling Units 1 | . . . . . . . 1 . . Scanalyzers 2 | . . 1 . . 1 . . . . Garrison Access 1 | . . . . 1 . . . . . Total Hacks 93 | . 3 15 15 10 12 . 10 13 15 Successful 36 | . 1 4 7 6 4 . 2 7 5 Failed 56 | . 2 10 8 4 8 . 8 6 10 Catastrophic 7 | . . . . 1 2 . 2 . 2 Database Lockouts 1 | . . 1 . . . . . . . Manual 50 | . 3 11 13 8 6 . 3 6 . Terminals 79 | . 3 11 15 8 9 . 5 13 15 Fabricators 5 | . . . . . 2 . 3 . . Repair Stations . | . . . . . . . . . . Recycling Units 2 | . . . . . . . 2 . . Scanalyzers 5 | . . 4 . . 1 . . . . Garrison Access 2 | . . . . 2 . . . . . Terminal Hacks 15 | . . . . . 2 . 1 7 5 Record 8 | . . . . . 2 . . 1 5 Open Door 4 | . . . . . . . . 4 . Terminal Index 1 | . . . . . . . 1 . . Locate Traps 1 | . . . . . . . . 1 . Zone Layout 1 | . . . . . . . . 1 . Fabricator Hacks 1 | . . . . . . . 1 . . Build 1 | . . . . . . . 1 . . Repair Station Hacks . | . . . . . . . . . . Recycling Unit Hacks . | . . . . . . . . . . Scanalyzer 2 | . . 1 . . 1 . . . . Retrieve Study 2 | . . 1 . . 1 . . . . Garrison Access Hacks 1 | . . . . 1 . . . . . Seal Access 1 | . . . . 1 . . . . . Unauthorized Hacks 17 | . 1 3 7 5 1 . . . . Terminals 17 | . 1 3 7 5 1 . . . . Assimilate 2 | . . . 1 1 . . . . . Botnet 7 | . 1 2 1 2 1 . . . . Skim 8 | . . 1 5 2 . . . . . Fabricators . | . . . . . . . . . . Repair Stations . | . . . . . . . . . . Recycling Units . | . . . . . . . . . . Scanalyzers . | . . . . . . . . . . Garrison Access . | . . . . . . . . . . Data Cores Recovered . | . . . . . . . . . . Used . | . . . . . . . . . . Hacking Detections 27 | . 1 4 3 2 5 . 5 4 3 Full Trace Events 9 | . . 1 1 1 1 . 1 2 2 Feedback Events . | . . . . . . . . . . Feedback Blocked . | . . . . . . . . . . Robot Schematics Acquired . | . . . . . . . . . . Robots Built . | . . . . . . . . . . Authchips . | . . . . . . . . . . Time . | . . . . . . . . . . Total Robot Build Rating . | . . . . . . . . . . Part Schematics Acquired . | . . . . . . . . . . Parts Built 2 | . . . . . . . 2 . . Authchips . | . . . . . . . . . . Time 58 | . . . . . . . 58 . . Total Part Build Rating 14 | . . . . . . . 14 . . Part Studies Acquired 2 | . . 1 . . 1 . . . . Parts Repaired . | . . . . . . . . . . Time . | . . . . . . . . . . Parts Recycled . | . . . . . . . . . . Recycled Matter . | . . . . . . . . . . Retrieved Matter . | . . . . . . . . . . Retrieved Components . | . . . . . . . . . . Parts Scanalyzed . | . . . . . . . . . . Part Schematics Acquired . | . . . . . . . . . . Parts Damaged . | . . . . . . . . . . Bothacking | -11 -10 -9 -8 -7 -6 -6 -6 -6 -6 ------------ Run | Yrd Mat Mat Mat Fac Fac Was Fac Ext Cet Used RIF Installer . | . . . . . . . . . . Robots Hacked 1 | . . . . . . . 1 . . Non-combat . | . . . . . . . . . . Combat 1 | . . . . . . . 1 . . Robot Hacks Applied 1 | . . . . . . . 1 . . parse_system 1 | . . . . . . . 1 . . Relay Couplers Released . | . . . . . . . . . . Fabnet Peak Effective % . | . . . . . . . . . . Robots Rewired . | . . . . . . . . . . Allies Hacked . | . . . . . . . . . . Hacks Repelled . | . . . . . . . . . . Allies | -11 -10 -9 -8 -7 -6 -6 -6 -6 -6 -------- Run | Yrd Mat Mat Mat Fac Fac Was Fac Ext Cet Total Allies 6 | . . . . . . 1 . 5 . Largest Group 2 | . . . . . . 1 . 2 . Highest-Rated Group 62 | . . . . . . 31 . 62 . Highest-Rated Ally 31 | . . . . . . 31 . 31 . Total Orders . | . . . . . . . . . . Ally Attacks 40 | . . . . . . 6 . 34 . Total Damage 626 | . . . . . . 105 . 521 . Kills 8 | . . . . . . . . 8 . Allies Corrupted . | . . . . . . . . . . Allies Melted . | . . . . . . . . . . Intel | -11 -10 -9 -8 -7 -6 -6 -6 -6 -6 ------- Run | Yrd Mat Mat Mat Fac Fac Was Fac Ext Cet Active Infowar (turns) 1460 | . . . 300 431 325 69 203 86 46 Sensors 1328 | . . . 300 431 325 69 203 . . Jamming 132 | . . . . . . . . 86 46 Robot Analysis Total . | . . . . . . . . . . Derelict Logs Recovered . | . . . . . . . . . . Drone Launches . | . . . . . . . . . . Drone Recoveries . | . . . . . . . . . . Exploration | -11 -10 -9 -8 -7 -6 -6 -6 -6 -6 ------------- Run | Yrd Mat Mat Mat Fac Fac Was Fac Ext Cet Turns Passed 3445 | 103 436 963 514 431 325 69 241 281 82 Spaces Moved 4879 | 74 231 536 715 1151 875 203 515 416 163 Core 11 | 11 . . . . . . . . . Treads 50 | . . 50 . . . . . . . Legs 332 | 63 231 38 . . . . . . . Wheels 534 | . . 448 75 . . . . 11 . Hover . | . . . . . . . . . . Flight 3952 | . . . 640 1151 875 203 515 405 163 Fastest Speed 26 | 50 120 100 31 26 27 27 27 27 34 Average Speed 49 | 118 146 122 51 27 27 27 27 35 34 Slowest Speed 260 | 150 260 200 197 31 27 27 27 106 40 Overloaded Moves . | . . . . . . . . . . Propulsion Burnouts . | . . . . . . . . . . Robots Hopped 55 | . . . 12 12 11 . 2 16 2 Potential Cave-ins . | . . . . . . . . . . Cave-ins Triggered . | . . . . . . . . . . Exploration Rate (%) 40 | 4 34 39 59 18 20 85 17 69 60 Regions Visited 9 Branch Regions 2 Pre-discovered Areas . | . . . . . . . . . . Known Exits Taken 4 | . . . 1 1 . . 1 1 . Unknown Exits Taken 3 | 1 1 1 . . . . . . . Scrap Searched . | . . . . . . . . . . Spaces Dug . | . . . . . . . . . . Terrain Destroyed 28 | . 6 . . . . . 22 . . Melee . | . . . . . . . . . . Projectile . | . . . . . . . . . . AOE 28 | . 6 . . . . . 22 . . Terrain Rammed . | . . . . . . . . . . Walls Destroyed . | . . . . . . . . . . Machines Disabled . | . . . . . . . . . . Actions | -11 -10 -9 -8 -7 -6 -6 -6 -6 -6 --------- Run | Yrd Mat Mat Mat Fac Fac Was Fac Ext Cet Total 5642 | 86 278 699 843 1255 951 216 607 526 181 Wait 447 | . 13 34 101 85 78 12 80 31 13 Move 4767 | 74 230 535 692 1128 853 202 510 384 159 Hop 50 | . . . 10 10 11 . 2 15 2 Pick Up 34 | 6 3 8 8 5 2 . 1 1 . Fast Attach 36 | 6 1 7 5 5 3 1 3 5 . Attach 22 | . . 6 5 1 . . 2 7 1 Detach 2 | . . 1 . . . . 1 . . Swap 16 | . 2 3 4 7 . . . . . Drop 41 | . 2 9 11 14 3 1 1 . . Fire 141 | . 26 96 6 . . . 7 . 6 Melee 4 | . . . . . 1 . . 3 . Ram 7 | . . . 1 . . . . 6 . Kick 1 | . 1 . . . . . . . . Crush . | . . . . . . . . . . Escape Stasis 74 | . . . . . . . . 74 . Rewire . | . . . . . . . . . . Trap . | . . . . . . . . . . Miscellaneous . | . . . . . . . . . . Route ------- -11/Scrapyard -10/Materials -9/Materials -8/Materials (discovered 3 exits: *Fac x3) -7/Factory -6/Factory -6/Waste -6/Factory (discovered 2 exits: *Fac / *Ext) -6/Extension (discovered 2 exits: *Fac / *Cet) -6/Cetus (discovered 1 exit: *Fac) History --------- Turn | Location | Event 20 | -11/Scrapyard | Discovered new exit (range 14) 104 | -11/Scrapyard | Entered Materials 314 | -10/Materials | Build established: Mutant 373 | -10/Materials | Discovered new exit (range 16) 540 | -10/Materials | Entered another Materials area 540 | -9/Materials | Evolved 2 slots: Propulsion x1, Utility x1 922 | -9/Materials | Central database locked down 1210 | -9/Materials | Core integrity fell below 50% 1332 | -9/Materials | Lost 3 parts (2n1w) 1492 | -9/Materials | Discovered new exit (range 4) 1503 | -9/Materials | Entered another Materials area 1503 | -8/Materials | Evolved 2 slots: Propulsion x1, Utility x1 1763 | -8/Materials | Garrison activated, responded to threat 1806 | -8/Materials | Lost 3 parts (1n1u1w) 1835 | -8/Materials | Discovered new exit (range 15) 1868 | -8/Materials | Identified exit to Factory 1939 | -8/Materials | Discovered exit to Factory (range 4) 1954 | -8/Materials | Met 7R-MNS 1996 | -8/Materials | Discovered exit to Factory (range 9) 2017 | -8/Materials | Entered Factory 2017 | -7/Factory | Evolved 2 slots: Utility x2 2018 | -7/Factory | Caught up to 7R-MNS 2125 | -7/Factory | Build established: Sprinter 2395 | -7/Factory | Discovered new exit (range 16) 2431 | -7/Factory | Identified exit to Factory 2448 | -7/Factory | Entered another Factory area 2448 | -6/Factory | Evolved 2 slots: Power x1, Utility x1 2449 | -6/Factory | Caught up to 7R-MNS 2773 | -6/Factory | Sucked down chute 2773 | -6/Factory | Entered Waste 2774 | -6/Waste | Met a frightened Derelict 2784 | -6/Waste | Spotted C-40 Crusher 2798 | -6/Waste | Spotted C-40 Crusher 2800 | -6/Waste | Spotted C-40 Crusher 2805 | -6/Waste | Spotted C-40 Crusher 2814 | -6/Waste | Spotted C-40 Crusher 2818 | -6/Waste | Spotted C-40 Crusher 2821 | -6/Waste | Discovered new exit (range 15) 2827 | -6/Waste | Identified exit to Factory 2842 | -6/Waste | Entered Factory 2903 | -6/Factory | Fabricated HERF Cannon (x2) 3075 | -6/Factory | Discovered new exit (range 16) 3080 | -6/Factory | Discovered new exit (range 15) 3083 | -6/Factory | Identified exit to Extension 3083 | -6/Factory | Entered Extension 3171 | -6/Extension | Spotted B-75 Beast 3177 | -6/Extension | Spotted B-75 Beast 3195 | -6/Extension | Rescued a captive Derelict 3246 | -6/Extension | Core integrity fell below 50% 3265 | -6/Extension | Rescued a captive Derelict 3269 | -6/Extension | Rescued a captive Derelict 3286 | -6/Extension | Rescued a captive Derelict 3305 | -6/Extension | Rescued a captive Derelict 3349 | -6/Extension | Lost 4 allies 3353 | -6/Extension | Lost 20 parts (4p9n5u2w) 3358 | -6/Extension | Discovered new exit (range 10) 3358 | -6/Extension | Discovered new exit (range 6) 3361 | -6/Extension | Identified exit to Cetus 3362 | -6/Extension | Identified exit to Factory 3364 | -6/Extension | Entered Cetus 3370 | -6/Cetus | Spotted Cetus Guard 3370 | -6/Cetus | Spotted Cetus Guard 3370 | -6/Cetus | Spotted Cetus Guard 3377 | -6/Cetus | Discovered exit to Factory (range 16) 3387 | -6/Cetus | Spotted Cetus Guard 3437 | -6/Cetus | Core integrity fell below 20% 3446 | -6/Cetus | Destroyed by Cetus Guard with Advanced Variable Charge Gun Last Messages --------------- 03411_ ALERT: Suspicious activity at Terminal C004. Dispatching Investigation squad. 03413_ Connecting with Cetus Manufacturing Controls... 03433_ Slug penetrates Machine. 03433_ VTOL Module destroyed. 03436_ Slug penetrates Machine. 03438_ H-66 Slayer destroyed. 03438_ Cetus Terminal disabled. 03439_ Slug penetrates Machine. 03439_ Transmission Jammer destroyed. 03439_ Slug penetrates Machine. 03439_ Machine disabled. 03442_ Penetrated by Slug. 03442_ Slug penetrates Machine. 03443_ Mni. Grenade Launcher destroyed. 03443_ Penetrated by Slug. 03445_ Cetus Guard suffers critical hit (Destroy). 03445_ Penetrated by Slug. 03446_ Slug penetrates Reinforced Barrier. 03446_ Slug penetrates Cetus Guard. Map ----- +----------------------------------------------------+ | ?????????????????????????????????????????????????? | | ?????????????????????????????????????????????????? | | ?????????????????????????????????????????????????? | | ?????????????????????????????????????????????????? | | ?????????????????????????????????????????????????? | | ?????????????????????????????????????????????????? | | ?????????????????????????????????????????????????? | | ?????????????????????????????????????????????????? | | ?????????????????????????????????????????????????? | | ?????????????????????????????????????????????????? | | ?????????????????????????????????????????????????? | | ?????????????????????????????????????????????????? | | ?????????????????????????????????????????????????? | | ?????????????????????????????????????????????????? | | ?????????????????????????????????????????????????? | | ??????? ?????????##??????????????????????????????? | | ?? " """"""" ???#"??????????????????????????????? | | ?#"""""""""""""""#"######????????????????????????? | | ?#""""" """ """""#""""""#????????????????????????? | | ?#""""""" """""""#" ""#????????????????????????? | | ?#""" " " """#T "#????????????????????????? | | ?#" """ """ "#" #????????????????????????? | | ## Y Y ############ #?????????? | | + Y h ????????? | | + *h ????????? | | + [@ ????????? | | ##" ##############???????????? | | ?#" "" """"""""# #????????????????????????? | | ?######++############"""#????????????????????????? | | ?#" " ""#???????????????????????????????????? | | ?###" """#???????????????????????????????????? | | ?#" " ""#???????????????????????????????????? | | ?###" """#???????????????????????????????????? | | ?#" "###???????????????????????????????????? | | ?#" """"#???????????????????????????????????? | | ?#" T"""#???????????????????????????????????? | | ?#" """"#???????????????????????????????????? | | ?### "###???????????????????????????????????? | | ?# """"#???????????????????????????????????? | | ?#" " T"""#???????????????????????????????????? | | ?#" """"#???????????????????????????????????? | | ?#" " " #"###???????????????????????????????????? | | ?# #""?????????????????????????????????????? | | ?#""" """#"""????????????????????????????????????? | | ?#########???????????????????????????????????????? | | ?????????????????????????????????????????????????? | | ?????????????????????????????????????????????????? | | ?????????????????????????????????????????????????? | | ?????????????????????????????????????????????????? | | ?????????????????????????????????????????????????? | +----------------------------------------------------+ Best States ------------- Heat Dissipation 37 Energy Generation 24 Energy Capacity 275 Matter Stores 300 Matter Capacity 300 Sight Range 16 Robot Scan Range 15 Terrain Scan Density 10 Jamming Range 12 Additional Mass Support 9 Armor Coverage 150 Resistance: EM 25 Propulsion Shielding 66 Evasion (%) 64 Targeting Accuracy 6 Recoil Reduction 2 Offensive Hacking 10 Defensive Hacking 10 Item Schematics ----------------- None Robot Schematics ------------------ None Fabricated ------------ HERF Cannon | x2 | -6/Factory | Preloaded Repaired ---------- Nothing Studied --------- Lgt. Treads | -9/Materials | Hacked Xenon Bombardment Thruster | -6/Factory | Hacked Alien Tech Used ----------------- None Achievements -------------- None Challenges ------------ None Game ------ Seed BehemothAntisysFist Manual? 0 Play Time 01:05:11 Cumulative 38.4 hours Start 2026.09.15 @ 13:16:57 End 2026.09.15 @ 14:37:03 Sessions 1 Manual Loads 0 Difficulty Rogue Special Mode None Game No. 59 Rogue 54 Adventurer 1 Explorer 4 Win Type - Total 1 Types 1/0/0/0/0/0/0/0/0/0 Lore% 13 Gallery% 26 Achievement% 24 Wizard Run 0 Options --------- Layout 0 ASCII 0 Keyboard 0 Movement Arrows Keybinds 0 Fullscreen 1 Font 18/SmallcapsGlow Map View 76x50 Zoom Use 0% Tactical HUD 1 Map Filters NONE Filters NONE Steam 1 RUN: cdff762b-32e8-4145-a5bd-d86250ae1961